[Event "44th Chess Olympiad Women 2022"]
[Site "Chennai"]
[Date "2022.08.02"]
[Round "5.36"]
[White "Mezioud, Amina"]
[Black "Nakabo, Peninah"]
[Result "1-0"]
[ECO "B15"]
[WhiteElo "2024"]
[BlackElo "1747"]
[Annotator "NA RC"]
[PlyCount "168"]
[EventDate "2022.07.29"]
[EventType "team-tourn"]
[EventCountry "IND"]
[SourceTitle "playchess.com"]
[Source "ChessBase"]
[SourceQuality "1"]
[WhiteTeam "Algeria"]
[BlackTeam "Uganda"]
[WhiteTeamCountry "ALG"]
[BlackTeamCountry "UGA"]
[TimeControl "40/5400+30:1800+30"]

1. e4 {[%emt 0:00:35]} c6 {[%emt 0:00:19]} 2. Nf3 {[%emt 0:00:04]} d5 {[%emt 0:00:11]} 3. Nc3 {[%emt 0:00:05]} Bg4 {[%emt 0:00:15]} 4. h3 {[%emt 0:00:17]} Bxf3 {[%emt 0:00:08]} 5. Qxf3 {[%emt 0:00:05]} e6 {[%emt 0:01:19]} 6. d4 {[%emt 0:06:08]} g6 {[%emt 0:03:36]} 7. Be2 {[%emt 0:03:38]} Bg7 {[%emt 0:00:13]} 8. exd5 {[%emt 0:05:29]} cxd5 {[%emt 0:01:37]} 9. Bb5+ {[%emt 0:05:42]} Nc6 {[%emt 0:00:20]} 10. Be3 {[%emt 0:02:26]} Nge7 {[%emt 0:00:35]} 11. O-O {[%emt 0:04:27]} O-O {[%emt 0:00:15]} 12. Ne2 {[%emt 0:03:10]} Qb6 {[%emt 0:01:55]} 13. Bxc6 {[%emt 0:01:33]} Nxc6 {[%emt 0:00:16]} 14. c3 {[%emt 0:00:45]} Rac8 {[%emt 0:08:11]} 15. Rab1 {[%emt 0:05:40]} Ne7 {[%emt 0:00:40]} 16. g4 {[%emt 0:01:28]} Qa5 {[%emt 0:02:17]} 17. a3 {[%emt 0:01:22]} b5 {[%emt 0:01:06]} 18. Nf4 {[%emt 0:02:38]} Qb6 {[%emt 0:06:17]} 19. Nd3 {[%emt 0:02:48]} a5 {[%emt 0:01:33]} 20. Nc5 {[%emt 0:01:57]} Qc6 {[%emt 0:01:50]} 21. Qg3 {[%emt 0:03:50]} Ra8 {[%emt 0:08:01]} 22. Bf4 {[%emt 0:01:45]} Nc8 {[%emt 0:00:44]} 23. Rfe1 {[%emt 0:02:48]} Nb6 {[%emt 0:01:16]} 24. Re2 {[%emt 0:07:05]} Nd7 {[%emt 0:02:25]} 25. Nd3 {[%emt 0:01:10]} Rfc8 {[%emt 0:02:27]} 26. Rbe1 {[%emt 0:00:22]} Re8 {[%emt 0:00:44]} 27. h4 {[%emt 0:00:50]} h6 {[%emt 0:01:46]} 28. Qe3 {[%emt 0:03:49]} Kh7 {[%emt 0:01:24]} 29. Qf3 {[%emt 0:01:51]} Kg8 {[%emt 0:00:57]} 30. Kg2 {[%emt 0:00:50]} Qc8 {[%emt 0:02:19]} 31. Qg3 {[%emt 0:04:01]} Nf6 {[%emt 0:02:05]} 32. f3 {[%emt 0:05:44]} Nd7 {[%emt 0:00:51]} 33. Bd2 {[%emt 0:02:20]} Qc4 {[%emt 0:03:21]} 34. f4 {[%emt 0:02:17]} Nf6 {[%emt 0:03:56]} 35. Nc5 {[%emt 0:00:19]} b4 {[%emt 0:02:12]} 36. b3 {[%emt 0:11:17]} Qb5 {[%emt 0:00:51]} 37. cxb4 {[%emt 0:00:16]} axb4 {[%emt 0:01:09]} 38. Bxb4 {[%emt 0:00:19]} Bf8 {[%emt 0:01:44]} 39. g5 {[%emt 0:04:53]} Bxc5 {[%emt 0:01:19]} 40. dxc5 {[%emt 0:03:38]} Ne4 {[%emt 0:00:31]} 41. Qe3 {[%emt 0:03:15]} h5 {[%emt 0:01:14]} 42. Qd4 {[%emt 0:00:33]} Rec8 {[%emt 0:01:55]} 43. Rxe4 {[%emt 0:01:33]} dxe4 {[%emt 0:00:40]} 44. Bc3 {[%emt 0:00:23]} Kf8 {[%emt 0:01:54]} 45. Qg7+ {[%emt 0:05:05]} Ke8 {[%emt 0:00:37]} 46. Qg8+ {[%emt 0:01:09]} Kd7 {[%emt 0:01:33]} 47. Qxf7+ {[%emt 0:00:14]} Kc6 {[%emt 0:00:44]} 48. Qxe6+ {[%emt 0:00:13]} Kb7 {[%emt 0:01:36]} 49. Qxe4+ {[%emt 0:00:05]} Qc6 {[%emt 0:00:32]} 50. Qxc6+ {[%emt 0:04:58]} Rxc6 {[%emt 0:03:50]} 51. Bb4 {[%emt 0:00:12]} Rd8 {[%emt 0:01:36]} 52. Re3 {[%emt 0:00:24]} Rd1 {[%emt 0:03:27]} 53. Re7+ {[%emt 0:04:08]} Kc8 {[%emt 0:00:54]} 54. Kf3 {[%emt 0:01:17]} Rh1 {[%emt 0:00:44]} 55. Ke4 {[%emt 0:00:17]} Rxh4 {[%emt 0:01:03]} 56. Kd5 {[%emt 0:00:06]} Ra6 {[%emt 0:03:30]} 57. c6 {[%emt 0:00:07]} Rh1 {[%emt 0:02:10]} 58. Re8+ {[%emt 0:00:39]} Kc7 {[%emt 0:00:21]} 59. Bd6+ {[%emt 0:00:04]} Kb6 {[%emt 0:00:24]} 60. c7 {[%emt 0:02:13]} Rd1+ {[%emt 0:00:48]} 61. Ke6 {[%emt 0:03:08]} Re1+ {[%emt 0:01:50]} 62. Be5 {[%emt 0:00:01]} Rxe5+ {[%emt 0:01:53]} 63. Kxe5 {[%emt 0:00:50]} Kxc7 {[%emt 0:00:17]} 64. Re6 {[%emt 0:01:51]} Rxe6+ {[%emt 0:05:24]} 65. Kxe6 {[%emt 0:00:03]} h4 {[%emt 0:00:09]} 66. f5 {[%emt 0:00:01]} gxf5 {[%emt 0:02:43]} 67. g6 {[%emt 0:00:04]} h3 {[%emt 0:00:08]} 68. g7 {[%emt 0:00:02]} h2 {[%emt 0:00:07]} 69. g8=Q {[%emt 0:00:04]} h1=Q {[%emt 0:00:11]} 70. Qg7+ {[%emt 0:00:23]} Kb6 {[%emt 0:01:26]} 71. Qd4+ {[%emt 0:00:03]} Ka6 {[%emt 0:01:40]} 72. Qc4+ {[%emt 0:00:51]} Kb6 {[%emt 0:00:52]} 73. Kxf5 {[%emt 0:00:12]} Qh5+ {[%emt 0:00:45]} 74. Ke4 {[%emt 0:00:09]} Qg4+ {[%emt 0:00:40]} 75. Kd3 {[%emt 0:00:05]} Qf3+ {[%emt 0:00:46]} 76. Kd2 {[%emt 0:01:39]} Qf2+ {[%emt 0:00:29]} 77. Qe2 {[%emt 0:01:24]} Qd4+ {[%emt 0:00:32]} 78. Kc2 {[%emt 0:00:02]} Qc5+ {[%emt 0:01:11]} 79. Kb2 {[%emt 0:00:01]} Qd4+ {[%emt 0:00:36]} 80. Ka2 {[%emt 0:00:02]} Ka5 {[%emt 0:04:22]} 81. a4 {[%emt 0:01:12]} Qb4 {[%emt 0:02:23]} 82. Qe5+ {[%emt 0:00:37]} Kb6 {[%emt 0:00:29]} 83. Qb8+ {[%emt 0:00:03]} Kc5 {[%emt 0:00:52]} 84. Qf8+ {[%emt 0:00:14]} Kd5 {[%emt 0:01:54]} 1-0

[Event "44th Chess Olympiad Women 2022"]
[Site "Chennai"]
[Date "2022.08.02"]
[Round "5.36"]
[White "Abdi, Zineb Dina"]
[Black "Nansubuga, Gloria"]
[Result "1-0"]
[ECO "B19"]
[WhiteElo "1899"]
[BlackElo "1538"]
[Annotator "NA RC COMBH"]
[PlyCount "101"]
[EventDate "2022.07.29"]
[EventType "team-tourn"]
[EventCountry "IND"]
[SourceTitle "playchess.com"]
[Source "ChessBase"]
[SourceQuality "1"]
[WhiteTeam "Algeria"]
[BlackTeam "Uganda"]
[WhiteTeamCountry "ALG"]
[BlackTeamCountry "UGA"]
[TimeControl "40/5400+30:1800+30"]

1. e4 {[%emt 0:00:04]} c6 {[%emt 0:03:09]} 2. d4 {[%emt 0:00:30]} d5 {[%emt 0:00:04]} 3. Nc3 {[%emt 0:00:08]} dxe4 {[%emt 0:00:42]} 4. Nxe4 {[%emt 0:00:06]} Bf5 {[%emt 0:00:19]} 5. Ng3 {[%emt 0:00:11]} Bg6 {[%emt 0:00:21]} 6. Nf3 {[%emt 0:00:10]} e6 {[%emt 0:02:03]} 7. h4 {[%emt 0:01:10]} h6 {[%emt 0:00:13]} 8. h5 {[%emt 0:00:24]} Bh7 {[%emt 0:00:08]} 9. Bd3 {[%emt 0:00:19]} Bxd3 {[%emt 0:00:19]} 10. Qxd3 {[%emt 0:00:06]} Nf6 {[%emt 0:00:30]} 11. Bd2 {[%emt 0:01:59]} Bd6 {[%emt 0:00:05]} 12. Ne4 {[%emt 0:01:23]} Nxe4 {[%emt 0:00:26]} 13. Qxe4 {[%emt 0:00:08]} Nd7 {[%emt 0:00:19]} 14. O-O-O {[%emt 0:07:30]} Nf6 {[%emt 0:00:33]} 15. Qe2 {[%emt 0:00:21]} Qc7 {[%emt 0:02:05]} 16. g3 {[%emt 0:01:23]} O-O-O {[%emt 0:01:15]} 17. Kb1 {[%emt 0:01:21]} Nd5 {[%emt 0:00:34]} 18. c4 {[%emt 0:02:05]} Nf6 {[%emt 0:01:33]} 19. c5 {[%emt 0:01:38]} Be7 {[%emt 0:02:16]} 20. Bf4 {[%emt 0:00:00]} Qa5 {[%emt 0:00:41]} 21. Ne5 {[%emt 0:01:12]} Rhf8 {[%emt 0:00:32]} 22. Nc4 {[%emt 0:01:12]} Qb5 {[%emt 0:04:09]} 23. Bd6 {[%emt 0:07:12]} Nd5 {[%emt 0:02:30]} 24. Rc1 {[%emt 0:03:11]} Qa6 {[%emt 0:10:20]} 25. Rhd1 {[%emt 0:10:45]} Bxd6 {[%emt 0:04:43]} 26. Nxd6+ {[%emt 0:00:40]} Rxd6 {[%emt 0:07:09]} 27. Qxa6 {[%emt 0:00:13]} bxa6 {[%emt 0:00:08]} 28. cxd6 {[%emt 0:00:03]} Kd7 {[%emt 0:00:10]} 29. Rd3 {[%emt 0:01:49]} Kxd6 {[%emt 0:00:57]} 30. Ra3 {[%emt 0:00:44]} Rc8 {[%emt 0:05:14]} 31. Rxa6 {[%emt 0:01:40]} Rc7 {[%emt 0:00:02]} 32. g4 {[%emt 0:08:43]} Nb4 {[%emt 0:01:28]} 33. Ra3 {[%emt 0:00:49]} Nd5 {[%emt 0:06:39]} 34. Rc4 {[%emt 0:01:37]} Nb6 {[%emt 0:01:23]} 35. Rcc3 {[%emt 0:03:56]} Nd5 {[%emt 0:00:18]} 36. Rg3 {[%emt 0:01:51]} Rb7 {[%emt 0:04:03]} 37. Rgb3 {[%emt 0:03:17]} Rc7 {[%emt 0:02:55]} 38. Rb8 {[%emt 0:00:50]} Nb6 {[%emt 0:00:56]} 39. Rd8+ {[%emt 0:02:22]} Ke7 {[%emt 0:02:11]} 40. Rg8 {[%emt 0:00:26]} Nc4 {[%emt 0:01:07]} 41. Rd3 {[%emt 0:36:18]} Rb7 {[%emt 0:30:31]} 42. b3 {[%emt 0:00:41]} Kf6 {[%emt 0:08:07]} 43. Kc1 {[%emt 0:01:25]} Nd6 {[%emt 0:00:51]} 44. Rf3+ {[%emt 0:00:40]} Ke7 {[%emt 0:01:42]} 45. Rxg7 {[%emt 0:05:19]} Kf8 {[%emt 0:00:22]} 46. Rh7 {[%emt 0:03:15]} Kg8 {[%emt 0:00:33]} 47. Rxh6 {[%emt 0:00:17]} Kg7 {[%emt 0:00:10]} 48. Rhf6 {[%emt 0:01:37]} Ne4 {[%emt 0:06:26]} 49. h6+ {[%emt 0:00:46]} Kg8 {[%emt 0:01:46]} 50. h7+ {[%emt 0:02:50]} Kg7 {[%emt 0:00:23]} 51. Rxf7+ {[%emt 0:00:42]} 1-0

[Event "44th Chess Olympiad Women 2022"]
[Site "Chennai"]
[Date "2022.08.02"]
[Round "5.36"]
[White "Ampaire Shakira"]
[Black "Nassr, Lina"]
[Result "0-1"]
[ECO "B84"]
[WhiteElo "1666"]
[BlackElo "2011"]
[Annotator "NA"]
[PlyCount "50"]
[EventDate "2022.07.29"]
[EventType "team-tourn"]
[EventCountry "IND"]
[SourceTitle "playchess.com"]
[Source "ChessBase"]
[SourceQuality "1"]
[WhiteTeam "Uganda"]
[BlackTeam "Algeria"]
[WhiteTeamCountry "UGA"]
[BlackTeamCountry "ALG"]
[TimeControl "40/5400+30:1800+30"]

1. e4 {[%emt 0:01:15]} c5 {[%emt 0:00:22]} 2. Nf3 {[%emt 0:00:20]} e6 {[%emt 0:00:16]} 3. d4 {[%emt 0:00:47]} cxd4 {[%emt 0:00:09]} 4. Nxd4 {[%emt 0:00:49]} a6 {[%emt 0:00:37]} 5. Nc3 {[%emt 0:01:39]} Qc7 {[%emt 0:00:34]} 6. Be2 {[%emt 0:02:29]} Nf6 {[%emt 0:00:40]} 7. O-O {[%emt 0:00:36]} Be7 {[%emt 0:06:40]} 8. Be3 {[%emt 0:05:02]} d6 {[%emt 0:01:21]} 9. Qd3 {[%emt 0:03:28]} Nbd7 {[%emt 0:06:39]} 10. Bg5 {[%emt 0:09:27]} b5 {[%emt 0:06:29]} 11. Bxf6 {[%emt 0:06:52]} Nxf6 {[%emt 0:01:39]} 12. f4 {[%emt 0:02:13]} b4 {[%emt 0:04:46]} 13. Nd1 {[%emt 0:01:37]} Bb7 {[%emt 0:02:13]} 14. Bf3 {[%emt 0:01:30]} O-O {[%emt 0:02:40]} 15. c4 {[%emt 0:01:37]} bxc3 {[%emt 0:09:25]} 16. Nxc3 {[%emt 0:00:46]} Qb6 {[%emt 0:01:46]} 17. Kh1 {[%emt 0:02:32]} Rfd8 {[%emt 0:01:01]} 18. b3 {[%emt 0:04:38]} Rac8 {[%emt 0:07:10]} 19. Rac1 {[%emt 0:01:51]} Bf8 {[%emt 0:01:11]} 20. Rc2 {[%emt 0:06:19]} Qa5 {[%emt 0:11:16]} 21. Rfc1 {[%emt 0:14:13]} d5 {[%emt 0:05:07]} 22. e5 {[%emt 0:04:43]} Ne4 {[%emt 0:08:31]} 23. Bxe4 {[%emt 0:00:37]} dxe4 {[%emt 0:00:17]} 24. Nxe4 {[%emt 0:00:18]} Rxc2 {[%emt 0:00:54]} 25. Rxc2 {[%emt 0:01:14]} Qe1+ {[%emt 0:00:12]} 0-1

[Event "44th Chess Olympiad Women 2022"]
[Site "Chennai"]
[Date "2022.08.02"]
[Round "5.36"]
[White "Takali Milly"]
[Black "Nassr, Rania"]
[Result "0-1"]
[ECO "A47"]
[WhiteElo "1482"]
[BlackElo "1737"]
[Annotator "NA RC COMBH"]
[PlyCount "90"]
[EventDate "2022.07.29"]
[EventType "team-tourn"]
[EventCountry "IND"]
[SourceTitle "playchess.com"]
[Source "ChessBase"]
[SourceQuality "1"]
[WhiteTeam "Uganda"]
[BlackTeam "Algeria"]
[WhiteTeamCountry "UGA"]
[BlackTeamCountry "ALG"]
[TimeControl "40/5400+30:1800+30"]

1. d4 {[%emt 0:00:38]} Nf6 {[%emt 0:00:29]} 2. Bf4 {[%emt 0:00:29]} e6 {[%emt 0:00:29]} 3. e3 {[%emt 0:00:03]} b6 {[%emt 0:00:34]} 4. Nf3 {[%emt 0:00:16]} Bb7 {[%emt 0:00:53]} 5. Bd3 {[%emt 0:00:14]} Bd6 {[%emt 0:01:24]} 6. Bxd6 {[%emt 0:03:02]} cxd6 {[%emt 0:00:42]} 7. Nbd2 {[%emt 0:00:04]} d5 {[%emt 0:01:27]} 8. O-O {[%emt 0:00:36]} O-O {[%emt 0:01:24]} 9. c3 {[%emt 0:02:24]} Ne4 {[%emt 0:10:16]} 10. Rc1 {[%emt 0:03:43]} d6 {[%emt 0:02:07]} 11. c4 {[%emt 0:00:39]} Nxd2 {[%emt 0:00:55]} 12. Qxd2 {[%emt 0:00:18]} dxc4 {[%emt 0:01:35]} 13. Bxc4 {[%emt 0:01:21]} Nd7 {[%emt 0:01:05]} 14. Be2 {[%emt 0:00:22]} Nf6 {[%emt 0:03:30]} 15. h3 {[%emt 0:03:19]} Qe7 {[%emt 0:01:49]} 16. Qb4 {[%emt 0:00:13]} Nd5 {[%emt 0:02:51]} 17. Qa3 {[%emt 0:01:58]} a6 {[%emt 0:08:14]} 18. Rc2 {[%emt 0:01:16]} b5 {[%emt 0:03:02]} 19. Qa5 {[%emt 0:08:03]} Qd8 {[%emt 0:02:25]} 20. Qxd8 {[%emt 0:01:42]} Raxd8 {[%emt 0:01:37]} 21. a3 {[%emt 0:00:06]} Rc8 {[%emt 0:03:22]} 22. Rfc1 {[%emt 0:00:15]} Rxc2 {[%emt 0:00:44]} 23. Rxc2 {[%emt 0:00:01]} Rc8 {[%emt 0:00:22]} 24. Rxc8+ {[%emt 0:00:28]} Bxc8 {[%emt 0:00:01]} 25. Ng5 {[%emt 0:01:34]} f5 {[%emt 0:03:46]} 26. Nf3 {[%emt 0:04:39]} h6 {[%emt 0:04:31]} 27. Nd2 {[%emt 0:01:52]} Nb6 {[%emt 0:00:39]} 28. f3 {[%emt 0:00:37]} g6 {[%emt 0:10:21]} 29. Kf2 {[%emt 0:00:22]} Kf7 {[%emt 0:00:14]} 30. e4 {[%emt 0:00:08]} Bb7 {[%emt 0:01:34]} 31. e5 {[%emt 0:00:35]} dxe5 {[%emt 0:00:29]} 32. dxe5 {[%emt 0:00:05]} f4 {[%emt 0:01:49]} 33. g4 {[%emt 0:00:16]} Nd7 {[%emt 0:01:56]} 34. Nb3 {[%emt 0:00:05]} Bd5 {[%emt 0:00:22]} 35. Nd4 {[%emt 0:00:21]} Nxe5 {[%emt 0:00:43]} 36. a4 {[%emt 0:00:54]} bxa4 {[%emt 0:01:20]} 37. Bxa6 {[%emt 0:00:05]} Bc4 {[%emt 0:00:40]} 38. Bxc4 {[%emt 0:02:46]} Nxc4 {[%emt 0:00:01]} 39. b3 {[%emt 0:02:25]} e5 {[%emt 0:01:12]} 40. bxa4 {[%emt 0:08:10]} exd4 {[%emt 0:00:19]} 41. Ke2 {[%emt 0:30:12]} Ke6 {[%emt 0:30:03]} 42. Kd3 {[%emt 0:00:38]} Kd5 {[%emt 0:00:12]} 43. Kc2 {[%emt 0:00:59]} g5 {[%emt 0:00:06]} 44. Kb3 {[%emt 0:00:33]} d3 {[%emt 0:00:30]} 45. Kc3 {[%emt 0:00:15]} d2 {[%emt 0:00:07]} 0-1

[Event "44th Chess Olympiad Women 2022"]
[Site "Chennai"]
[Date "2022.08.02"]
[Round "5.37"]
[White "Hernandez Alvarez, Tania Regla"]
[Black "Kannappan, Sigappi"]
[Result "0-1"]
[ECO "A16"]
[WhiteElo "2058"]
[BlackElo "1914"]
[Annotator "NA RC"]
[PlyCount "116"]
[EventDate "2022.07.29"]
[EventType "team-tourn"]
[EventCountry "IND"]
[SourceTitle "playchess.com"]
[Source "ChessBase"]
[SourceQuality "1"]
[WhiteTeam "Costa Rica"]
[BlackTeam "Hong Kong"]
[WhiteTeamCountry "CRI"]
[BlackTeamCountry "HKG"]
[TimeControl "40/5400+30:1800+30"]

1. Nf3 {[%emt 0:02:54]} Nf6 {[%emt 0:00:07]} 2. c4 {[%emt 0:00:11]} g6 {[%emt 0:00:08]} 3. g3 {[%emt 0:00:27]} Bg7 {[%emt 0:00:05]} 4. Bg2 {[%emt 0:00:06]} O-O {[%emt 0:00:06]} 5. O-O {[%emt 0:00:07]} d6 {[%emt 0:00:03]} 6. Nc3 {[%emt 0:00:10]} Nc6 {[%emt 0:06:39]} 7. d3 {[%emt 0:00:44]} a6 {[%emt 0:01:11]} 8. Rb1 {[%emt 0:00:16]} Rb8 {[%emt 0:00:46]} 9. b4 {[%emt 0:02:50]} b5 {[%emt 0:11:18]} 10. cxb5 {[%emt 0:00:43]} axb5 {[%emt 0:00:04]} 11. a3 {[%emt 0:00:18]} e5 {[%emt 0:10:00]} 12. Bb2 {[%emt 0:01:29]} Nd4 {[%emt 0:06:31]} 13. e3 {[%emt 0:10:21]} Nxf3+ {[%emt 0:05:26]} 14. Bxf3 {[%emt 0:00:39]} Bh3 {[%emt 0:03:17]} 15. Re1 {[%emt 0:00:25]} h5 {[%emt 0:09:49]} 16. Rc1 {[%emt 0:04:56]} Bg4 {[%emt 0:02:02]} 17. Bxg4 {[%emt 0:05:47]} hxg4 {[%emt 0:00:03]} 18. Ne4 {[%emt 0:01:18]} Nxe4 {[%emt 0:05:08]} 19. dxe4 {[%emt 0:00:44]} Qd7 {[%emt 0:00:04]} 20. Qd5 {[%emt 0:00:43]} Rfc8 {[%emt 0:06:24]} 21. Red1 {[%emt 0:02:31]} Qe6 {[%emt 0:02:56]} 22. Qd3 {[%emt 0:01:54]} Bf8 {[%emt 0:03:06]} 23. Rc6 {[%emt 0:02:35]} Be7 {[%emt 0:02:12]} 24. Rdc1 {[%emt 0:00:13]} Bd8 {[%emt 0:00:09]} 25. Ra6 {[%emt 0:04:07]} Rb7 {[%emt 0:00:29]} 26. Rac6 {[%emt 0:09:06]} Rcb8 {[%emt 0:01:01]} 27. Rd1 {[%emt 0:07:37]} Rb6 {[%emt 0:00:56]} 28. Rxb6 {[%emt 0:00:48]} Rxb6 {[%emt 0:00:02]} 29. Qe2 {[%emt 0:00:15]} Be7 {[%emt 0:06:17]} 30. Kg2 {[%emt 0:05:17]} c5 {[%emt 0:01:40]} 31. bxc5 {[%emt 0:00:53]} dxc5 {[%emt 0:00:01]} 32. Rd5 {[%emt 0:00:18]} Bd6 {[%emt 0:01:27]} 33. Qd2 {[%emt 0:02:45]} b4 {[%emt 0:02:07]} 34. axb4 {[%emt 0:00:54]} cxb4 {[%emt 0:00:48]} 35. Qd1 {[%emt 0:00:41]} b3 {[%emt 0:04:19]} 36. Qa1 {[%emt 0:00:33]} Qf6 {[%emt 0:03:36]} 37. Kg1 {[%emt 0:01:25]} Qf3 {[%emt 0:01:02]} 38. Qa8+ {[%emt 0:07:23]} Kh7 {[%emt 0:02:56]} 39. Qd8 {[%emt 0:02:04]} Qxe4 {[%emt 0:01:48]} 40. Rd2 {[%emt 0:09:28]} Rc6 {[%emt 0:02:03]} 41. Qf6 {[%emt 0:33:36]} Qf5 {[%emt 0:06:58]} 42. Qh4+ {[%emt 0:00:00]} Kg7 {[%emt 0:01:13]} 43. Qd8 {[%emt 0:00:00]} Bb4 {[%emt 0:03:19]} 44. Re2 {[%emt 0:00:00]} Bc3 {[%emt 0:06:27]} 45. e4 {[%emt 0:00:00]} Qe6 {[%emt 0:00:21]} 46. Qd3 {[%emt 0:00:00]} Qc4 {[%emt 0:03:26]} 47. Qe3 {[%emt 0:06:05]} Bxb2 {[%emt 0:01:01]} 48. Rxb2 {[%emt 0:00:02]} Qc1+ {[%emt 0:00:27]} 49. Qxc1 {[%emt 0:00:06]} Rxc1+ {[%emt 0:00:02]} 50. Kg2 {[%emt 0:00:08]} Rc3 {[%emt 0:00:07]} 51. h3 {[%emt 0:00:25]} gxh3+ {[%emt 0:01:27]} 52. Kxh3 {[%emt 0:00:02]} f5 {[%emt 0:00:39]} 53. exf5 {[%emt 0:02:22]} gxf5 {[%emt 0:00:02]} 54. Kg2 {[%emt 0:02:02]} e4 {[%emt 0:00:38]} 55. Kf1 {[%emt 0:00:25]} Kf6 {[%emt 0:00:18]} 56. Rd2 {[%emt 0:02:47]} Ke5 {[%emt 0:02:04]} 57. Rd8 {[%emt 0:00:14]} b2 {[%emt 0:00:31]} 58. Rb8 {[%emt 0:00:06]} Rc1+ {[%emt 0:00:06]} 0-1

[Event "44th Chess Olympiad Women 2022"]
[Site "Chennai"]
[Date "2022.08.02"]
[Round "5.37"]
[White "Deng, Jing Xin Crystal"]
[Black "Diaz Charpentier, Kristel Meliss"]
[Result "0-1"]
[ECO "E11"]
[WhiteElo "1914"]
[BlackElo "1989"]
[Annotator "NA RC"]
[PlyCount "70"]
[EventDate "2022.07.29"]
[EventType "team-tourn"]
[EventCountry "IND"]
[SourceTitle "playchess.com"]
[Source "ChessBase"]
[SourceQuality "1"]
[WhiteTeam "Hong Kong"]
[BlackTeam "Costa Rica"]
[WhiteTeamCountry "HKG"]
[BlackTeamCountry "CRI"]
[TimeControl "40/5400+30:1800+30"]

1. d4 {[%emt 0:00:05]} Nf6 {[%emt 0:00:31]} 2. c4 {[%emt 0:00:04]} e6 {[%emt 0:00:02]} 3. Nf3 {[%emt 0:00:03]} Bb4+ {[%emt 0:00:04]} 4. Bd2 {[%emt 0:00:06]} Qe7 {[%emt 0:00:04]} 5. g3 {[%emt 0:00:11]} Nc6 {[%emt 0:00:13]} 6. Nc3 {[%emt 0:00:12]} Bxc3 {[%emt 0:00:20]} 7. Bxc3 {[%emt 0:00:05]} Ne4 {[%emt 0:00:04]} 8. Rc1 {[%emt 0:00:22]} Nxc3 {[%emt 0:00:06]} 9. Rxc3 {[%emt 0:00:03]} d6 {[%emt 0:00:23]} 10. d5 {[%emt 0:00:18]} Nb8 {[%emt 0:00:25]} 11. dxe6 {[%emt 0:00:14]} fxe6 {[%emt 0:01:28]} 12. Bg2 {[%emt 0:00:59]} O-O {[%emt 0:00:00]} 13. O-O {[%emt 0:03:53]} Nd7 {[%emt 0:04:10]} 14. Qc2 {[%emt 0:14:49]} a5 {[%emt 0:03:15]} 15. h4 {[%emt 0:00:00]} Nf6 {[%emt 0:08:20]} 16. e4 {[%emt 0:05:34]} e5 {[%emt 0:00:00]} 17. c5 {[%emt 0:02:20]} c6 {[%emt 0:13:55]} 18. cxd6 {[%emt 0:04:45]} Qxd6 {[%emt 0:01:22]} 19. Rd1 {[%emt 0:02:35]} Qc7 {[%emt 0:00:36]} 20. Rc5 {[%emt 0:07:06]} Bg4 {[%emt 0:00:49]} 21. Rd3 {[%emt 0:07:31]} Bxf3 {[%emt 0:15:15]} 22. Bxf3 {[%emt 0:02:04]} Nd7 {[%emt 0:00:41]} 23. Rcd5 {[%emt 0:09:45]} Nb6 {[%emt 0:02:45]} 24. Rb5 {[%emt 0:00:05]} Rf7 {[%emt 0:06:24]} 25. Rbb3 {[%emt 0:05:16]} a4 {[%emt 0:05:03]} 26. Rbc3 {[%emt 0:01:52]} Raf8 {[%emt 0:05:24]} 27. Kg2 {[%emt 0:03:28]} Rf6 {[%emt 0:00:00]} 28. Qd2 {[%emt 0:08:04]} Qf7 {[%emt 0:00:43]} 29. b3 {[%emt 0:00:16]} axb3 {[%emt 0:01:09]} 30. axb3 {[%emt 0:00:20]} Nd5 {[%emt 0:07:50]} 31. exd5 {[%emt 0:00:09]} e4 {[%emt 0:00:04]} 32. Rd4 {[%emt 0:07:10]} Rxf3 {[%emt 0:01:24]} 33. Rxf3 {[%emt 0:00:04]} Qxf3+ {[%emt 0:00:04]} 34. Kg1 {[%emt 0:00:17]} cxd5 {[%emt 0:00:20]} 35. Rxd5 {[%emt 0:03:31]} e3 {[%emt 0:00:11]} 0-1

[Event "44th Chess Olympiad Women 2022"]
[Site "Chennai"]
[Date "2022.08.02"]
[Round "5.37"]
[White "Mayorga Araya, Sofia"]
[Black "Li, Joy Ching"]
[Result "1-0"]
[ECO "B36"]
[WhiteElo "1758"]
[BlackElo "1386"]
[Annotator "NA RC COMBH"]
[PlyCount "111"]
[EventDate "2022.07.29"]
[EventType "team-tourn"]
[EventCountry "IND"]
[SourceTitle "playchess.com"]
[Source "ChessBase"]
[SourceQuality "1"]
[WhiteTeam "Costa Rica"]
[BlackTeam "Hong Kong"]
[WhiteTeamCountry "CRI"]
[BlackTeamCountry "HKG"]
[TimeControl "40/5400+30:1800+30"]

1. e4 {[%emt 0:00:02]} c5 {[%emt 0:00:08]} 2. Nf3 {[%emt 0:00:13]} g6 {[%emt 0:00:07]} 3. d4 {[%emt 0:01:06]} cxd4 {[%emt 0:00:07]} 4. Nxd4 {[%emt 0:00:01]} Nc6 {[%emt 0:00:10]} 5. c4 {[%emt 0:00:36]} Nf6 {[%emt 0:00:09]} 6. Nc3 {[%emt 0:00:12]} Nxd4 {[%emt 0:00:15]} 7. Qxd4 {[%emt 0:00:09]} d6 {[%emt 0:00:06]} 8. Be2 {[%emt 0:00:52]} Bg7 {[%emt 0:00:10]} 9. Be3 {[%emt 0:00:42]} O-O {[%emt 0:00:12]} 10. Qd2 {[%emt 0:01:13]} Be6 {[%emt 0:00:36]} 11. Rc1 {[%emt 0:00:53]} Qa5 {[%emt 0:00:28]} 12. h3 {[%emt 0:02:55]} Rfc8 {[%emt 0:00:49]} 13. b3 {[%emt 0:01:12]} a6 {[%emt 0:01:07]} 14. O-O {[%emt 0:08:45]} b5 {[%emt 0:03:04]} 15. cxb5 {[%emt 0:04:43]} axb5 {[%emt 0:02:02]} 16. Qd3 {[%emt 0:06:41]} b4 {[%emt 0:12:21]} 17. Na4 {[%emt 0:00:32]} Rab8 {[%emt 0:06:06]} 18. f4 {[%emt 0:07:31]} Rxc1 {[%emt 0:03:20]} 19. Rxc1 {[%emt 0:00:12]} Bd7 {[%emt 0:01:39]} 20. Qc2 {[%emt 0:26:22]} h5 {[%emt 0:14:10]} 21. Bd3 {[%emt 0:00:00]} Bxa4 {[%emt 0:07:50]} 22. bxa4 {[%emt 0:00:00]} d5 {[%emt 0:03:03]} 23. e5 {[%emt 0:00:00]} Ne4 {[%emt 0:01:39]} 24. Qc7 {[%emt 0:00:00]} Qxc7 {[%emt 0:02:58]} 25. Rxc7 {[%emt 0:00:00]} Ra8 {[%emt 0:04:47]} 26. Bxe4 {[%emt 0:00:00]} dxe4 {[%emt 0:00:57]} 27. Ra7 {[%emt 0:00:00]} Rxa7 {[%emt 0:04:47]} 28. Bxa7 {[%emt 0:00:00]} Kf8 {[%emt 0:00:34]} 29. Bc5 {[%emt 0:00:24]} Ke8 {[%emt 0:00:26]} 30. a5 {[%emt 0:00:21]} Kd8 {[%emt 0:00:40]} 31. Bxe7+ {[%emt 0:01:12]} Kc7 {[%emt 0:00:36]} 32. Kf2 {[%emt 0:01:34]} Kc6 {[%emt 0:05:10]} 33. Bxb4 {[%emt 0:01:24]} Kb5 {[%emt 0:01:09]} 34. a3 {[%emt 0:00:12]} Bh6 {[%emt 0:03:46]} 35. Ke3 {[%emt 0:01:36]} g5 {[%emt 0:01:07]} 36. f5 {[%emt 0:00:35]} g4+ {[%emt 0:00:51]} 37. Kxe4 {[%emt 0:00:21]} gxh3 {[%emt 0:00:31]} 38. gxh3 {[%emt 0:00:02]} Bg5 {[%emt 0:00:23]} 39. e6 {[%emt 0:01:27]} fxe6 {[%emt 0:00:22]} 40. fxe6 {[%emt 0:00:02]} Bd8 {[%emt 0:00:28]} 41. Kf5 {[%emt 0:30:33]} h4 {[%emt 0:30:28]} 42. e7 {[%emt 0:01:37]} Bxe7 {[%emt 0:00:10]} 43. Bxe7 {[%emt 0:00:04]} Kxa5 {[%emt 0:00:08]} 44. Bxh4 {[%emt 0:00:08]} Ka4 {[%emt 0:00:05]} 45. Bg3 {[%emt 0:00:12]} Kxa3 {[%emt 0:00:09]} 46. h4 {[%emt 0:00:05]} Kb3 {[%emt 0:00:06]} 47. h5 {[%emt 0:00:12]} Kc4 {[%emt 0:00:06]} 48. h6 {[%emt 0:00:08]} Kd3 {[%emt 0:00:05]} 49. h7 {[%emt 0:00:30]} Ke3 {[%emt 0:00:07]} 50. h8=Q {[%emt 0:00:08]} Kd3 {[%emt 0:00:04]} 51. Qe5 {[%emt 0:00:53]} Kd2 {[%emt 0:00:09]} 52. Qe4 {[%emt 0:00:41]} Kc1 {[%emt 0:00:07]} 53. Qe2 {[%emt 0:00:22]} Kb1 {[%emt 0:00:06]} 54. Qd2 {[%emt 0:00:10]} Ka1 {[%emt 0:00:07]} 55. Be5+ {[%emt 0:00:07]} Kb1 {[%emt 0:00:05]} 56. Qb2# {[%emt 0:00:08]} 1-0